fUSD/lending_fUSD_20250108
["ID","MTS","AMOUNT","RATE_DAILY","PERIOD"]
[348161651,1736359857514,-500.0,0.00011442,2]
[348161652,1736359857524,-500.0,0.00011442,2]
[348161653,1736359857534,-500.0,0.00011442,2]
[348161654,1736359857543,-305.74,0.00011442,2]
[348161655,1736359857553,-523.03,0.00011442,2]
[348161656,1736359857563,-500.0,0.00011442,2]
[348161657,1736359857573,-184.23272692,0.00011442,2]
[348161658,1736359857583,-500.0,0.00011442,2]
[348161659,1736359857594,-500.0,0.00011442,2]
[348161660,1736359857605,-500.0,0.00011442,2]
[348161661,1736359857616,-1776.23,0.00011442,2]
[348161662,1736359857626,-500.0,0.00011442,2]
[348161663,1736359857636,-518.9,0.00011442,2]
[348161664,1736359857646,-500.0,0.00011442,2]
[348161665,1736359857655,-500.0,0.00011442,2]
[348161666,1736359857664,-500.0,0.00011442,2]
[348161667,1736359857675,-500.0,0.00011442,2]
[348161668,1736359857685,-500.0,0.00011442,2]
[348161669,1736359857695,-612.75,0.00011442,2]
[348161670,1736359857705,-500.0,0.00011442,2]
[348161671,1736359857715,-500.0,0.00011442,2]
[348161672,1736359857726,-500.0,0.00011442,2]
[348161673,1736359857736,-500.0,0.00011442,2]
[348161674,1736359857746,-500.0,0.00011442,2]
[348161675,1736359857756,-500.0,0.00011442,2]
[348161676,1736359857766,-500.0,0.00011442,2]
[348161677,1736359857776,-500.0,0.00011442,2]
[348161678,1736359857786,-500.0,0.00011442,2]
[348161679,1736359857796,-895.18,0.00011442,2]
[348161680,1736359857806,-500.0,0.00011442,2]
[348161681,1736359857816,-500.0,0.00011442,2]
[348161682,1736359857826,-500.0,0.00011442,2]
[348161683,1736359857836,-626.72906363,0.00011442,2]
[348161684,1736359857846,-500.0,0.00011442,2]
[348161685,1736359857858,-500.0,0.00011442,2]
[348161686,1736359857869,-500.0,0.00011442,2]
[348161687,1736359857879,-500.0,0.00011442,2]
[348161688,1736359857889,-500.0,0.00011442,2]
[348161689,1736359857899,-500.0,0.00011442,2]
[348161690,1736359857909,-500.0,0.00011442,2]
[348161691,1736359857919,-500.0,0.00011442,2]
[348161692,1736359857929,-500.0,0.00011442,2]
[348161693,1736359857938,-500.0,0.00011442,2]
[348161694,1736359857948,-500.0,0.00011442,2]
[348161695,1736359857958,-500.0,0.00011442,2]
[348161696,1736359857968,-500.0,0.00011442,2]
[348161697,1736359857978,-500.0,0.00011442,2]
[348161698,1736359857987,-500.0,0.00011442,2]
[348161699,1736359857997,-500.0,0.00011442,2]
[348161700,1736359858007,-2486.69,0.00011442,2]
[348161701,1736359858016,-500.0,0.00011442,2]
[348161702,1736359858026,-500.0,0.00011442,2]
[348161703,1736359858036,-1609.39,0.00011442,2]
[348161704,1736359858045,-307.18020261,0.00011442,2]
[348161705,1736359858055,-500.0,0.00011442,2]
[348161706,1736359858065,-500.0,0.00011442,2]
[348161707,1736359858075,-1881.55,0.00011442,2]
[348161708,1736359858084,-500.0,0.00011442,2]
[348161709,1736359858094,-500.0,0.00011442,2]
[348161710,1736359858105,-738.91,0.00011442,2]
[348161711,1736359858115,-500.0,0.00011442,2]
[348161712,1736359858125,-500.0,0.00011442,2]
[348161713,1736359858135,-207.48,0.00011442,2]
[348161714,1736359858144,-500.0,0.00011442,2]
[348161715,1736359858154,-500.0,0.00011442,2]
[348161716,1736359858163,-500.0,0.00011442,2]
[348161717,1736359858174,-500.0,0.00011442,2]
[348161718,1736359858185,-500.0,0.00011442,2]
[348161719,1736359858195,-500.0,0.00011442,2]
[348161720,1736359858204,-1165.6,0.00011442,2]
[348161721,1736359858214,-224.53,0.00011442,2]
[348161722,1736359858224,-500.0,0.00011442,2]
[348161723,1736359858234,-500.0,0.00011442,2]
[348161724,1736359858243,-500.0,0.00011442,2]
[348161725,1736359858255,-500.0,0.00011442,2]
[348161726,1736359858265,-500.0,0.00011442,2]
[348161727,1736359858274,-1062.87,0.00011442,2]
[348161728,1736359858284,-500.0,0.00011442,2]
[348161729,1736359858293,-500.0,0.00011442,2]
[348161730,1736359858303,-500.0,0.00011442,2]
[348161731,1736359858312,-500.0,0.00011442,2]
[348161732,1736359858322,-500.0,0.00011442,2]
[348161733,1736359858332,-500.0,0.00011442,2]
[348161734,1736359858342,-500.0,0.00011442,2]
[348161735,1736359858353,-806.19,0.00011442,2]
[348161736,1736359858363,-500.0,0.00011442,2]
[348161737,1736359858372,-500.0,0.00011442,2]
[348161738,1736359858382,-500.0,0.00011442,2]
[348161739,1736359858391,-500.0,0.00011442,2]
[348161740,1736359858402,-500.0,0.00011442,2]
[348161741,1736359858411,-500.0,0.00011442,2]
[348161742,1736359858421,-1900.07,0.00011442,2]
[348161743,1736359858431,-500.0,0.00011442,2]
[348161744,1736359858441,-500.0,0.00011442,2]
[348161745,1736359858450,-500.0,0.00011442,2]
[348161746,1736359858459,-500.0,0.00011442,2]
[348161747,1736359858469,-500.0,0.00011443,2]
[348161748,1736359858481,-500.0,0.00011443,2]
[348161749,1736359858492,-500.0,0.00011443,2]
[348161750,1736359858501,-500.0,0.00011443,2]
[348161751,1736359858511,-515.5,0.00011443,2]
[348161752,1736359858521,-500.0,0.00011443,2]
[348161753,1736359858530,-566.41,0.00011443,2]
[348161754,1736359858540,-554.43,0.00011443,2]
[348161755,1736359858550,-972.3,0.00011443,2]
[348161756,1736359858560,-500.0,0.00011443,2]
[348161757,1736359858570,-3132.54,0.00011443,2]
[348161758,1736359858581,-500.0,0.00011443,2]
[348161759,1736359858591,-2872.45,0.00011443,2]
[348161760,1736359858601,-500.0,0.00011443,2]
[348161761,1736359858612,-881.98,0.00011443,2]
[348161762,1736359858622,-500.0,0.00011443,2]
[348161763,1736359858632,-500.0,0.00011443,2]
[348161764,1736359858642,-477.87550228,0.00011443,2]
[348161765,1736359858653,-1347.42,0.00011443,2]
[348161766,1736359858662,-500.0,0.00011443,2]
[348161767,1736359858672,-1237.6,0.00011443,2]
[348161768,1736359858681,-661.94,0.00011443,2]
[348161769,1736359858691,-610.11,0.00011443,2]
[348161770,1736359858701,-681.24,0.00011443,2]
[348161771,1736359858711,-2531.29,0.00011443,2]
[348161772,1736359858720,-564.53,0.00011443,2]
[348161773,1736359858729,-500.0,0.00011443,2]
[348161774,1736359858739,-500.0,0.00011443,2]
[348161775,1736359858749,-1827.77,0.00011443,2]
[348161776,1736359858760,-755.67,0.00011443,2]
[348161777,1736359858770,-1027.02,0.00011443,2]
[348161778,1736359858780,-1050.96,0.00011443,2]
[348161779,1736359858790,-658.49,0.00011443,2]
[348161780,1736359858800,-580.81,0.00011443,2]
[348161781,1736359858810,-1231.40685746,0.00011458,2]
[348161782,1736359858821,-357.91579778,0.00011465,2]
[348161783,1736359858831,-1108.0,0.000115,5]
[348161784,1736359858841,-351.22,0.00011503,2]
[348161785,1736359858852,-2751.0,0.00011507,2]
[348161786,1736359858862,-357.91579778,0.00011588,2]
[348161787,1736359858872,-500.0,0.00011616,2]
[348161788,1736359858882,-1348.55,0.00011616,2]
[348161789,1736359858892,-500.0,0.00011616,2]
[348161790,1736359858902,-1849.53,0.00011616,2]
[348161791,1736359858912,-1067.12,0.00011616,2]
[348161792,1736359858922,-500.0,0.00011616,2]
[348161793,1736359858931,-733.62,0.00011616,2]
[348161794,1736359858941,-2578.3,0.00011616,2]
[348161795,1736359858951,-658.72,0.00011616,2]
[348161796,1736359858961,-500.0,0.00011616,2]
[348161797,1736359858972,-716.0,0.00011616,2]
[348161798,1736359858982,-500.0,0.00011616,2]
[348161799,1736359858992,-500.0,0.00011616,2]
[348161800,1736359859003,-1337.64,0.00011616,2]
[348161801,1736359859013,-500.0,0.00011616,2]
[348161802,1736359859024,-150.0,0.0001166,2]
[348161803,1736359859033,-150.0,0.0001166,2]
[348161804,1736359859044,-823.0,0.00011663,2]
[348161805,1736359859053,-850.25,0.00011678,2]
[348161806,1736359859064,-1599.87,0.00011678,2]
[348161807,1736359859074,-838.6,0.00011678,2]
[348161808,1736359859084,-591.31,0.00011678,2]
[348161809,1736359859093,-603.938109,0.00011678,2]
[348161810,1736359859106,-501.98602,0.00011678,2]
[348161811,1736359859116,-1854.2,0.00011678,2]
[348161812,1736359859126,-585.43,0.00011679,2]
[348161813,1736359859136,-1582.51,0.00011679,2]
[348161814,1736359859146,-522.89,0.00011679,2]
[348161815,1736359859156,-500.0,0.00011679,2]
[348161816,1736359859166,-500.0,0.00011679,2]
[348161817,1736359859176,-812.07,0.00011679,2]
[348161818,1736359859191,-500.0,0.00011679,2]
[348161819,1736359859202,-549.34,0.00011679,2]
[348161820,1736359859212,-500.0,0.00011679,2]
[348161821,1736359859222,-500.0,0.00011679,2]
[348161822,1736359859232,-569.34,0.00011679,2]
[348161823,1736359859241,-1203.52,0.00011679,2]
[348161824,1736359859251,-500.0,0.00011679,2]
[348161825,1736359859262,-1169.64,0.00011679,2]
[348161826,1736359859272,-500.0,0.00011679,2]
[348161827,1736359859282,-500.0,0.00011679,2]
[348161828,1736359859292,-500.0,0.00011679,2]
[348161829,1736359859301,-662.42,0.00011679,2]
[348161830,1736359859311,-1522.12,0.00011679,2]
[348161831,1736359859321,-5600.47,0.00011679,2]
[348161832,1736359859331,-614.38,0.00011679,2]
[348161833,1736359859340,-558.79666858,0.00011679,2]
[348161834,1736359859355,-500.0,0.00011679,2]
[348161835,1736359859364,-500.0,0.00011679,2]
[348161836,1736359859374,-551.6,0.00011679,2]
[348161837,1736359859383,-320.75136932,0.00011679,2]
[348161838,1736359859393,-500.0,0.00011679,2]
[348161839,1736359859402,-255.96,0.00011679,2]
[348161840,1736359859412,-500.0,0.00011679,2]
[348161841,1736359859422,-500.0,0.00011679,2]
[348161842,1736359859431,-500.0,0.00011679,2]
[348161843,1736359859440,-500.0,0.00011679,2]
[348161844,1736359859450,-500.0,0.00011679,2]
[348161845,1736359859459,-2095.77,0.00011679,2]
[348161846,1736359859469,-500.0,0.00011679,2]
[348161847,1736359859479,-500.0,0.00011679,2]
[348161848,1736359859489,-500.0,0.00011679,2]
[348161849,1736359859499,-569.46,0.00011679,2]
[348161850,1736359859508,-500.0,0.00011679,2]
[348161851,1736359859517,-863.18,0.00011679,2]
[348161852,1736359859527,-776.1,0.00011679,2]
[348161853,1736359859537,-670.49,0.00011679,2]
[348161854,1736359859546,-500.0,0.00011679,2]
[348161855,1736359859557,-679.81,0.00011679,2]
[348161856,1736359859566,-311.121,0.0001168,2]
[348161857,1736359859576,-585.95589756,0.0001168,2]
[348161858,1736359859585,-582.92,0.0001168,2]
[348161859,1736359859595,-500.0,0.0001168,2]
[348161860,1736359859605,-1505.0,0.0001168,2]
[348161861,1736359859613,-1154.18,0.0001168,2]
[348161862,1736359859621,-357.91579778,0.0001171,2]
[348161863,1736359859631,-500.0,0.00011715,2]
[348161864,1736359859639,-1360.97,0.00011715,2]
[348161865,1736359859648,-500.0,0.00011715,2]
[348161866,1736359859658,-1423.13,0.00011715,2]
[348161867,1736359859669,-3388.61,0.00011715,2]
[348161868,1736359859679,-500.0,0.00011715,2]
[348161869,1736359859688,-500.0,0.00011715,2]
[348161870,1736359859698,-1882.28,0.00011715,2]
[348161871,1736359859707,-1365.04,0.00011715,2]
[348161872,1736359859717,-2793.21,0.00011715,2]
[348161873,1736359859727,-719.8,0.00011715,2]
[348161874,1736359859737,-500.0,0.00011715,2]
[348161875,1736359859748,-1238.71,0.00011715,2]
[348161876,1736359859758,-881.81,0.00011715,2]
[348161877,1736359859769,-899.88,0.00011715,2]
[348161878,1736359859784,-500.0,0.00011715,2]
[348161879,1736359859800,-500.0,0.00011716,2]
[348161880,1736359859812,-500.0,0.00011716,2]
[348161881,1736359859822,-500.0,0.00011716,2]
[348161882,1736359859832,-500.0,0.00011716,2]
[348161883,1736359859842,-500.0,0.00011716,2]
[348161884,1736359859853,-500.0,0.00011716,2]
[348161885,1736359859863,-534.26202646,0.00011716,2]
[348161886,1736359859873,-500.0,0.00011716,2]
[348161887,1736359859884,-500.0,0.00011716,2]
[348161888,1736359859896,-500.0,0.00011716,2]
[348161889,1736359859905,-500.0,0.00011716,2]
[348161890,1736359859915,-500.0,0.00011716,2]
[348161891,1736359859925,-500.0,0.00011716,2]
[348161892,1736359859937,-500.36,0.00011716,2]
[348161893,1736359859947,-500.0,0.00011716,2]
[348161894,1736359859957,-770.53,0.00011716,2]
[348161895,1736359859967,-500.0,0.00011716,2]
[348161896,1736359860153,-500.0,0.00011716,2]
[348161897,1736359860163,-500.0,0.00011716,2]
[348161898,1736359860175,-500.0,0.00011716,2]
[348161899,1736359860184,-523.03,0.00011716,2]
[348161900,1736359860193,-500.0,0.00011716,2]
[348161901,1736359860202,-500.0,0.00011716,2]
[348161902,1736359860212,-500.0,0.00011716,2]
[348161903,1736359860221,-1776.23,0.00011716,2]
[348161904,1736359860230,-500.0,0.00011716,2]
[348161905,1736359860239,-518.9,0.00011716,2]
[348161906,1736359860249,-500.0,0.00011716,2]
[348161907,1736359860260,-500.0,0.00011716,2]
[348161908,1736359860270,-500.0,0.00011716,2]
[348161909,1736359860279,-500.0,0.00011716,2]
[348161910,1736359860289,-500.0,0.00011716,2]
[348161911,1736359860298,-612.75,0.00011716,2]
[348161912,1736359860307,-500.0,0.00011716,2]
[348161913,1736359860316,-500.0,0.00011716,2]
[348161914,1736359860326,-500.0,0.00011716,2]
[348161915,1736359860335,-500.0,0.00011716,2]
[348161916,1736359860344,-454.16450479,0.00011716,2]
[348161917,1736359860354,-500.0,0.00011716,2]
[348161918,1736359860364,-500.0,0.00011716,2]
[348161919,1736359860373,-895.18,0.00011716,2]
[348161920,1736359860383,-500.0,0.00011716,2]
[348161921,1736359860392,-500.0,0.00011716,2]
[348161922,1736359860401,-500.0,0.00011716,2]
[348161923,1736359860410,-500.0,0.00011716,2]
[348161924,1736359860421,-500.0,0.00011716,2]
[348161925,1736359860431,-500.0,0.00011716,2]
[348161926,1736359860440,-500.0,0.00011716,2]
[348161927,1736359860450,-500.0,0.00011716,2]
[348161928,1736359860459,-500.0,0.00011716,2]
[348161929,1736359860469,-500.0,0.00011716,2]
[348161930,1736359860480,-500.0,0.00011716,2]
[348161931,1736359860490,-500.0,0.00011716,2]
[348161932,1736359860499,-500.0,0.00011716,2]
[348161933,1736359860508,-500.0,0.00011716,2]
[348161934,1736359860518,-500.0,0.00011716,2]
[348161935,1736359860527,-500.0,0.00011716,2]
[348161936,1736359860536,-500.0,0.00011716,2]
[348161937,1736359860545,-500.0,0.00011716,2]
[348161938,1736359860555,-2486.69,0.00011716,2]
[348161939,1736359860564,-500.0,0.00011716,2]
[348161940,1736359860573,-500.0,0.00011716,2]
[348161941,1736359860583,-1609.39,0.00011716,2]
[348161942,1736359860594,-208.8,0.00011716,2]
[348161943,1736359860604,-500.0,0.00011716,2]
[348161944,1736359860614,-1881.55,0.00011716,2]
[348161945,1736359860623,-500.0,0.00011716,2]
[348161946,1736359860632,-500.0,0.00011716,2]
[348161947,1736359860641,-738.91,0.00011716,2]
[348161948,1736359860651,-500.0,0.00011716,2]
[348161949,1736359860660,-500.0,0.00011716,2]
[348161950,1736359860670,-500.0,0.00011716,2]
[348161951,1736359860679,-500.0,0.00011716,2]
[348161952,1736359860688,-500.0,0.00011716,2]
[348161953,1736359860697,-500.0,0.00011716,2]
[348161954,1736359860709,-1165.6,0.00011716,2]
[348161955,1736359860718,-500.0,0.00011716,2]
[348161956,1736359860727,-500.0,0.00011716,2]
[348161957,1736359860737,-500.0,0.00011716,2]
[348161958,1736359860747,-500.0,0.00011716,2]
[348161959,1736359860756,-500.0,0.00011716,2]
[348161960,1736359860766,-1062.87,0.00011716,2]
[348161961,1736359860775,-500.0,0.00011716,2]
[348161962,1736359860784,-500.0,0.00011716,2]
[348161963,1736359860793,-500.0,0.00011716,2]
[348161964,1736359860802,-500.0,0.00011716,2]
[348161965,1736359860811,-500.0,0.00011716,2]
[348161966,1736359860820,-500.0,0.00011716,2]
[348161967,1736359860829,-500.0,0.00011716,2]
[348161968,1736359860839,-500.0,0.00011716,2]
[348161969,1736359860850,-806.19,0.00011716,2]
[348161970,1736359860859,-500.0,0.00011716,2]
[348161971,1736359860869,-500.0,0.00011716,2]
[348161972,1736359860878,-500.0,0.00011716,2]
[348161973,1736359860888,-500.0,0.00011716,2]
[348161974,1736359860897,-500.0,0.00011716,2]
[348161975,1736359860906,-1900.07,0.00011716,2]
[348161976,1736359860915,-500.0,0.00011716,2]
[348161977,1736359860924,-307.6,0.00011716,2]
[348161978,1736359860934,-500.0,0.00011716,2]
[348161979,1736359860943,-500.0,0.00011716,2]
[348161980,1736359860952,-500.0,0.00011717,2]
[348161981,1736359860961,-419.15104915,0.00011717,2]
[348161982,1736359860970,-500.0,0.00011717,2]
[348161983,1736359860979,-500.0,0.00011717,2]
[348161984,1736359860988,-515.5,0.00011717,2]
[348161985,1736359860997,-500.0,0.00011717,2]
[348161986,1736359861006,-566.41,0.00011717,2]
[348161987,1736359861015,-554.43,0.00011717,2]
[348161988,1736359861025,-972.3,0.00011717,2]
[348161989,1736359861035,-500.0,0.00011717,2]
[348161990,1736359861045,-3132.54,0.00011717,2]
[348161991,1736359861054,-500.0,0.00011717,2]
[348161992,1736359861063,-2872.45,0.00011717,2]
[348161993,1736359861072,-500.0,0.00011717,2]
[348161994,1736359861081,-881.98,0.00011717,2]
[348161995,1736359861091,-500.0,0.00011717,2]
[348161996,1736359861104,-500.0,0.00011717,2]
[348161997,1736359861113,-1347.42,0.00011717,2]
[348161998,1736359861122,-1237.6,0.00011717,2]
[348161999,1736359861131,-661.94,0.00011717,2]
[348162000,1736359861141,-610.11,0.00011717,2]
[348162001,1736359861150,-681.24,0.00011717,2]
[348162002,1736359861159,-2531.29,0.00011717,2]
[348162003,1736359861168,-564.53,0.00011717,2]
[348162004,1736359861177,-500.0,0.00011717,2]
[348162005,1736359861189,-1827.77,0.00011717,2]
[348162006,1736359861198,-755.67,0.00011717,2]
[348162007,1736359861207,-1027.02,0.00011717,2]
[348162008,1736359861216,-1050.96,0.00011717,2]
[348162009,1736359861227,-658.49,0.00011717,2]
[348162010,1736359861236,-580.81,0.00011717,2]
[348162011,1736359861245,-1876.54890234,0.00011753,2]
[348162012,1736359861255,-300.0,0.00011753,2]
[348162013,1736359861264,-150.0,0.00011753,2]
[348162014,1736359861274,-500.0,0.0001178,2]
[348162015,1736359861283,-500.0,0.0001178,2]
[348162016,1736359861292,-500.0,0.0001178,2]
[348162017,1736359861301,-200.0,0.000118,2]
[348162018,1736359861311,-162.69,0.000118,2]
[348162019,1736359861320,-357.91579778,0.00011833,2]
[348162020,1736359861330,-204.2787458,0.00011867,2]
[348162021,1736359861339,-177.94,0.0001189,2]
[348162022,1736359861351,-500.0,0.0001189,2]
[348162023,1736359861361,-1348.55,0.0001189,2]
[348162024,1736359861371,-500.0,0.0001189,2]
[348162025,1736359861380,-1849.53,0.0001189,2]
[348162026,1736359861390,-1067.12,0.0001189,2]
[348162027,1736359861399,-500.0,0.0001189,2]
[348162028,1736359861409,-733.62,0.0001189,2]
[348162029,1736359861419,-2578.3,0.0001189,2]
[348162030,1736359861428,-658.72,0.0001189,2]
[348162031,1736359861437,-500.0,0.0001189,2]
[348162032,1736359861446,-716.0,0.0001189,2]
[348162033,1736359861455,-500.0,0.0001189,2]
[348162034,1736359861464,-500.0,0.0001189,2]
[348162035,1736359861474,-1337.64,0.0001189,2]
[348162036,1736359861484,-150.13441252,0.00011899,5]
[348162037,1736359861494,-429.70395169,0.00011938,2]
[348162038,1736359861504,-850.25,0.00011952,2]
[348162039,1736359861513,-1599.87,0.00011952,2]
[348162040,1736359861524,-838.6,0.00011952,2]
[348162041,1736359861534,-591.31,0.00011952,2]
[348162042,1736359861543,-603.938109,0.00011952,2]
[348162043,1736359861552,-501.98602,0.00011952,2]
[348162044,1736359861561,-1854.2,0.00011952,2]
[348162045,1736359861571,-585.43,0.00011953,2]
[348162046,1736359861580,-1582.51,0.00011953,2]
[348162047,1736359861589,-522.89,0.00011953,2]
[348162048,1736359861598,-500.0,0.00011953,2]
[348162049,1736359861608,-3356.424,0.00011953,2]
[348162050,1736359861617,-500.0,0.00011953,2]
[348162051,1736359861626,-812.07,0.00011953,2]
[348162052,1736359861636,-500.0,0.00011953,2]
[348162053,1736359861645,-549.34,0.00011953,2]
[348162054,1736359861654,-500.0,0.00011953,2]
[348162055,1736359861663,-500.0,0.00011953,2]
[348162056,1736359861672,-569.34,0.00011953,2]
[348162057,1736359861682,-1203.52,0.00011953,2]
[348162058,1736359861691,-500.0,0.00011953,2]
[348162059,1736359861700,-1169.64,0.00011953,2]
[348162060,1736359861709,-167.54,0.00011953,2]
[348162061,1736359861718,-182.69,0.00011953,2]
[348162062,1736359861727,-233.02791929,0.00011953,2]
[348162063,1736359861737,-662.42,0.00011953,2]
[348162064,1736359861746,-1522.12,0.00011953,2]
[348162065,1736359861756,-5600.47,0.00011953,2]
[348162066,1736359861765,-500.0,0.00011953,2]
[348162067,1736359861775,-500.0,0.00011953,2]
[348162068,1736359861784,-551.6,0.00011953,2]
[348162069,1736359861794,-500.0,0.00011953,2]
[348162070,1736359861803,-500.0,0.00011953,2]
[348162071,1736359861813,-500.0,0.00011953,2]
[348162072,1736359861822,-500.0,0.00011953,2]
[348162073,1736359861831,-500.0,0.00011953,2]
[348162074,1736359861840,-2095.77,0.00011953,2]
[348162075,1736359861851,-500.0,0.00011953,2]
[348162076,1736359861860,-500.0,0.00011953,2]
[348162077,1736359861869,-500.0,0.00011953,2]
[348162078,1736359861878,-569.46,0.00011953,2]
[348162079,1736359861887,-500.0,0.00011953,2]
[348162080,1736359861897,-863.18,0.00011953,2]
[348162081,1736359861906,-776.1,0.00011953,2]
[348162082,1736359861916,-670.49,0.00011953,2]
[348162083,1736359861925,-500.0,0.00011953,2]
[348162084,1736359861934,-679.81,0.00011953,2]
[348162085,1736359861943,-582.92,0.00011954,2]
[348162086,1736359861952,-500.0,0.00011954,2]
[348162087,1736359861962,-1505.0,0.00011954,2]
[348162088,1736359861972,-1154.18,0.00011954,2]
[348162089,1736359861981,-357.91579778,0.00011955,2]
[348162090,1736359861991,-150.0,0.00011967,2]
[348162091,1736359862009,-500.0,0.00011989,2]
[348162092,1736359862021,-1360.97,0.00011989,2]
[348162093,1736359862030,-500.0,0.00011989,2]
[348162094,1736359862039,-1423.13,0.00011989,2]
[348162095,1736359862050,-3388.61,0.00011989,2]
[348162096,1736359862059,-500.0,0.00011989,2]
[348162097,1736359862068,-500.0,0.00011989,2]
[348162098,1736359862078,-1882.28,0.00011989,2]
[348162099,1736359862087,-1365.04,0.00011989,2]
[348162100,1736359862097,-2793.21,0.00011989,2]
[348162101,1736359862107,-719.8,0.00011989,2]
[348162102,1736359862117,-500.0,0.00011989,2]
[348162103,1736359862128,-1238.71,0.00011989,2]
[348162104,1736359862139,-881.81,0.00011989,2]
[348162105,1736359862149,-899.88,0.00011989,2]
[348162106,1736359862158,-500.0,0.00011989,2]
[348162107,1736359862168,-500.0,0.0001199,2]
[348162108,1736359862179,-500.0,0.0001199,2]
[348162109,1736359862194,-500.0,0.0001199,2]
[348162110,1736359862205,-348.87,0.0001199,2]
[348162111,1736359862215,-185.39,0.0001199,2]
[348162112,1736359862226,-500.0,0.0001199,2]
[348162113,1736359862235,-194.52,0.0001199,2]
[348162114,1736359862245,-500.0,0.0001199,2]
[348162115,1736359862255,-500.0,0.0001199,2]
[348162116,1736359862266,-500.0,0.0001199,2]
[348162117,1736359862276,-500.0,0.0001199,2]
[348162118,1736359862286,-500.0,0.0001199,2]
[348162119,1736359862296,-770.53,0.0001199,2]
[348162120,1736359862305,-500.0,0.0001199,2]
[348162121,1736359862314,-500.0,0.0001199,2]
[348162122,1736359862323,-181.80225342,0.0001199,2]
[348162123,1736359862334,-523.03,0.0001199,2]
[348162124,1736359862343,-436.33225393,0.0001199,2]
[348162125,1736359862354,-500.0,0.0001199,2]
[348162126,1736359862363,-500.0,0.0001199,2]
[348162127,1736359862372,-1776.23,0.0001199,2]
[348162128,1736359862382,-500.0,0.0001199,2]
[348162129,1736359862392,-518.9,0.0001199,2]
[348162130,1736359862401,-627.48,0.0001199,2]
[348162131,1736359862410,-500.0,0.0001199,2]
[348162132,1736359862419,-500.0,0.0001199,2]
[348162133,1736359862429,-500.0,0.0001199,2]
[348162134,1736359862439,-500.0,0.0001199,2]
[348162135,1736359862449,-612.75,0.0001199,2]
[348162136,1736359862458,-155.81,0.0001199,2]
[348162137,1736359862468,-500.0,0.0001199,2]
[348162138,1736359862479,-500.0,0.0001199,2]
[348162139,1736359862489,-210.79,0.0001199,2]
[348162140,1736359862499,-500.0,0.0001199,2]
[348162141,1736359862509,-365.55,0.0001199,2]
[348162142,1736359862518,-895.18,0.0001199,2]
[348162143,1736359862528,-500.0,0.0001199,2]
[348162144,1736359862537,-500.0,0.0001199,2]
[348162145,1736359862548,-500.0,0.0001199,2]
[348162146,1736359862558,-500.0,0.0001199,2]
[348162147,1736359862567,-500.0,0.0001199,2]
[348162148,1736359862577,-500.0,0.0001199,2]
[348162149,1736359862587,-500.0,0.0001199,2]
[348162150,1736359862598,-500.0,0.0001199,2]